{"text_format":"1","workbook":"xlsx","n_sheets":4,"sheets":["Dashboard","List of Hearings","Duplicate","Data"],"not_rendered":{"charts":1,"images":1,"macros":1,"external_links":0,"defined_names":15,"comments":0,"pivot_tables":0},"unopened":[],"bounds":{"document_bytes":16777216,"sheet_cells":100000,"rows_first":2000,"rows_last":500,"rows_between":2000,"halvings":0,"cell_chars":16384,"cell_head_chars":4096},"cells_cut":0,"cells_raw":0,"read":"whole","date_system":"1900"}

{"sheet":"Dashboard","index":0,"n_rows":21,"n_cols":9,"rows_kept":21,"cut":false,"hidden":false,"merged":[]}
[]
[]
[null,"Enter Date Range:","2014-01-01","2014-12-31"]
[]
[null,"View By:",null,"State"]
[null,{"$f":"\"Filter by \"& IF(D5=\"State\",\"Hearing Type\",\":\")","v":"Filter by Hearing Type"},"Claims Handler","All"]
[]
[null,{"$f":"FilterCriteria&\" Claims by \"&D5","v":"All Claims by State"},"Resolved","Unresolved"]
[null,{"$f":"IFERROR(IF($D$5=\"Hearing Type\",INDEX(tblHearingType[Hearing Type],ROW()-8,1),INDEX(tblSOJ[SOJ],ROW()-8,1)),\"\")","v":"ACT"},{"$f":"IF(AND($D$5=\"Hearing Type\",Filter1=\"State\"),COUNTIFS(tblHearings[[#All],[Commence \nDate]],\">=\"&Dashboard!$C$3,tblHearings[[#All],[Commence \nDate]],\"<=\"&Dashboard!$D$3,tblHearings[[#All],[Hearing Type]],Dashboard!$B9,tblHearings[[#All],[SOJ]],Filter2,tblHearings[[#All],[Outcome]],\"<>\"&\"\"),IF(AND($D$5=\"Hearing Type\",Filter1=\"Claims Handler\"),COUNTIFS(tblHearings[[#All],[Commence \nDate]],\">=\"&Dashboard!$C$3,tblHearings[[#All],[Commence \nDate]],\"<=\"&Dashboard!$D$3,tblHearings[[#All],[Hearing Type]],Dashboard!$B9,tblHearings[[#All],[Claims Handler]],Filter2,tblHearings[[#All],[Outcome]],\"<>\"&\"\"),COUNTIFS(tblHearings[[#All],[Commence \nDate]],\">=\"&Dashboard!$C$3,tblHearings[[#All],[Commence \nDate]],\"<=\"&Dashboard!$D$3,tblHearings[[#All],[Hearing Type]],Filter2,tblHearings[[#All],[SOJ]],$B9,tblHearings[[#All],[Outcome]],\"<>\"&\"\")))","v":0},{"$f":"IF(AND($D$5=\"Hearing Type\",Filter1=\"State\"),COUNTIFS(tblHearings[[#All],[Commence \nDate]],\">=\"&Dashboard!$C$3,tblHearings[[#All],[Commence \nDate]],\"<=\"&Dashboard!$D$3,tblHearings[[#All],[Hearing Type]],Dashboard!$B9,tblHearings[[#All],[SOJ]],Filter2,tblHearings[[#All],[Outcome]],\"\"),IF(AND($D$5=\"Hearing Type\",Filter1=\"Claims Handler\"),COUNTIFS(tblHearings[[#All],[Commence \nDate]],\">=\"&Dashboard!$C$3,tblHearings[[#All],[Commence \nDate]],\"<=\"&Dashboard!$D$3,tblHearings[[#All],[Hearing Type]],Dashboard!$B9,tblHearings[[#All],[Claims Handler]],Filter2,tblHearings[[#All],[Outcome]],\"\"),COUNTIFS(tblHearings[[#All],[Commence \nDate]],\">=\"&Dashboard!$C$3,tblHearings[[#All],[Commence \nDate]],\"<=\"&Dashboard!$D$3,tblHearings[[#All],[Hearing Type]],Filter2,tblHearings[[#All],[SOJ]],$B9,tblHearings[[#All],[Outcome]],\"\")))","v":0}]
[null,{"$f":"IFERROR(IF($D$5=\"Hearing Type\",INDEX(tblHearingType[Hearing Type],ROW()-8,1),INDEX(tblSOJ[SOJ],ROW()-8,1)),\"\")","v":"NSW"},{"$f":"IF(AND($D$5=\"Hearing Type\",Filter1=\"State\"),COUNTIFS(tblHearings[[#All],[Commence \nDate]],\">=\"&Dashboard!$C$3,tblHearings[[#All],[Commence \nDate]],\"<=\"&Dashboard!$D$3,tblHearings[[#All],[Hearing Type]],Dashboard!$B10,tblHearings[[#All],[SOJ]],Filter2,tblHearings[[#All],[Outcome]],\"<>\"&\"\"),IF(AND($D$5=\"Hearing Type\",Filter1=\"Claims Handler\"),COUNTIFS(tblHearings[[#All],[Commence \nDate]],\">=\"&Dashboard!$C$3,tblHearings[[#All],[Commence \nDate]],\"<=\"&Dashboard!$D$3,tblHearings[[#All],[Hearing Type]],Dashboard!$B10,tblHearings[[#All],[Claims Handler]],Filter2,tblHearings[[#All],[Outcome]],\"<>\"&\"\"),COUNTIFS(tblHearings[[#All],[Commence \nDate]],\">=\"&Dashboard!$C$3,tblHearings[[#All],[Commence \nDate]],\"<=\"&Dashboard!$D$3,tblHearings[[#All],[Hearing Type]],Filter2,tblHearings[[#All],[SOJ]],$B10,tblHearings[[#All],[Outcome]],\"<>\"&\"\")))","v":1},{"$f":"IF(AND($D$5=\"Hearing Type\",Filter1=\"State\"),COUNTIFS(tblHearings[[#All],[Commence \nDate]],\">=\"&Dashboard!$C$3,tblHearings[[#All],[Commence \nDate]],\"<=\"&Dashboard!$D$3,tblHearings[[#All],[Hearing Type]],Dashboard!$B10,tblHearings[[#All],[SOJ]],Filter2,tblHearings[[#All],[Outcome]],\"\"),IF(AND($D$5=\"Hearing Type\",Filter1=\"Claims Handler\"),COUNTIFS(tblHearings[[#All],[Commence \nDate]],\">=\"&Dashboard!$C$3,tblHearings[[#All],[Commence \nDate]],\"<=\"&Dashboard!$D$3,tblHearings[[#All],[Hearing Type]],Dashboard!$B10,tblHearings[[#All],[Claims Handler]],Filter2,tblHearings[[#All],[Outcome]],\"\"),COUNTIFS(tblHearings[[#All],[Commence \nDate]],\">=\"&Dashboard!$C$3,tblHearings[[#All],[Commence \nDate]],\"<=\"&Dashboard!$D$3,tblHearings[[#All],[Hearing Type]],Filter2,tblHearings[[#All],[SOJ]],$B10,tblHearings[[#All],[Outcome]],\"\")))","v":1}]
[null,{"$f":"IFERROR(IF($D$5=\"Hearing Type\",INDEX(tblHearingType[Hearing Type],ROW()-8,1),INDEX(tblSOJ[SOJ],ROW()-8,1)),\"\")","v":"NT"},{"$f":"IF(AND($D$5=\"Hearing Type\",Filter1=\"State\"),COUNTIFS(tblHearings[[#All],[Commence \nDate]],\">=\"&Dashboard!$C$3,tblHearings[[#All],[Commence \nDate]],\"<=\"&Dashboard!$D$3,tblHearings[[#All],[Hearing Type]],Dashboard!$B11,tblHearings[[#All],[SOJ]],Filter2,tblHearings[[#All],[Outcome]],\"<>\"&\"\"),IF(AND($D$5=\"Hearing Type\",Filter1=\"Claims Handler\"),COUNTIFS(tblHearings[[#All],[Commence \nDate]],\">=\"&Dashboard!$C$3,tblHearings[[#All],[Commence \nDate]],\"<=\"&Dashboard!$D$3,tblHearings[[#All],[Hearing Type]],Dashboard!$B11,tblHearings[[#All],[Claims Handler]],Filter2,tblHearings[[#All],[Outcome]],\"<>\"&\"\"),COUNTIFS(tblHearings[[#All],[Commence \nDate]],\">=\"&Dashboard!$C$3,tblHearings[[#All],[Commence \nDate]],\"<=\"&Dashboard!$D$3,tblHearings[[#All],[Hearing Type]],Filter2,tblHearings[[#All],[SOJ]],$B11,tblHearings[[#All],[Outcome]],\"<>\"&\"\")))","v":0},{"$f":"IF(AND($D$5=\"Hearing Type\",Filter1=\"State\"),COUNTIFS(tblHearings[[#All],[Commence \nDate]],\">=\"&Dashboard!$C$3,tblHearings[[#All],[Commence \nDate]],\"<=\"&Dashboard!$D$3,tblHearings[[#All],[Hearing Type]],Dashboard!$B11,tblHearings[[#All],[SOJ]],Filter2,tblHearings[[#All],[Outcome]],\"\"),IF(AND($D$5=\"Hearing Type\",Filter1=\"Claims Handler\"),COUNTIFS(tblHearings[[#All],[Commence \nDate]],\">=\"&Dashboard!$C$3,tblHearings[[#All],[Commence \nDate]],\"<=\"&Dashboard!$D$3,tblHearings[[#All],[Hearing Type]],Dashboard!$B11,tblHearings[[#All],[Claims Handler]],Filter2,tblHearings[[#All],[Outcome]],\"\"),COUNTIFS(tblHearings[[#All],[Commence \nDate]],\">=\"&Dashboard!$C$3,tblHearings[[#All],[Commence \nDate]],\"<=\"&Dashboard!$D$3,tblHearings[[#All],[Hearing Type]],Filter2,tblHearings[[#All],[SOJ]],$B11,tblHearings[[#All],[Outcome]],\"\")))","v":1}]
[null,{"$f":"IFERROR(IF($D$5=\"Hearing Type\",INDEX(tblHearingType[Hearing Type],ROW()-8,1),INDEX(tblSOJ[SOJ],ROW()-8,1)),\"\")","v":"QLD"},{"$f":"IF(AND($D$5=\"Hearing Type\",Filter1=\"State\"),COUNTIFS(tblHearings[[#All],[Commence \nDate]],\">=\"&Dashboard!$C$3,tblHearings[[#All],[Commence \nDate]],\"<=\"&Dashboard!$D$3,tblHearings[[#All],[Hearing Type]],Dashboard!$B12,tblHearings[[#All],[SOJ]],Filter2,tblHearings[[#All],[Outcome]],\"<>\"&\"\"),IF(AND($D$5=\"Hearing Type\",Filter1=\"Claims Handler\"),COUNTIFS(tblHearings[[#All],[Commence \nDate]],\">=\"&Dashboard!$C$3,tblHearings[[#All],[Commence \nDate]],\"<=\"&Dashboard!$D$3,tblHearings[[#All],[Hearing Type]],Dashboard!$B12,tblHearings[[#All],[Claims Handler]],Filter2,tblHearings[[#All],[Outcome]],\"<>\"&\"\"),COUNTIFS(tblHearings[[#All],[Commence \nDate]],\">=\"&Dashboard!$C$3,tblHearings[[#All],[Commence \nDate]],\"<=\"&Dashboard!$D$3,tblHearings[[#All],[Hearing Type]],Filter2,tblHearings[[#All],[SOJ]],$B12,tblHearings[[#All],[Outcome]],\"<>\"&\"\")))","v":2},{"$f":"IF(AND($D$5=\"Hearing Type\",Filter1=\"State\"),COUNTIFS(tblHearings[[#All],[Commence \nDate]],\">=\"&Dashboard!$C$3,tblHearings[[#All],[Commence \nDate]],\"<=\"&Dashboard!$D$3,tblHearings[[#All],[Hearing Type]],Dashboard!$B12,tblHearings[[#All],[SOJ]],Filter2,tblHearings[[#All],[Outcome]],\"\"),IF(AND($D$5=\"Hearing Type\",Filter1=\"Claims Handler\"),COUNTIFS(tblHearings[[#All],[Commence \nDate]],\">=\"&Dashboard!$C$3,tblHearings[[#All],[Commence \nDate]],\"<=\"&Dashboard!$D$3,tblHearings[[#All],[Hearing Type]],Dashboard!$B12,tblHearings[[#All],[Claims Handler]],Filter2,tblHearings[[#All],[Outcome]],\"\"),COUNTIFS(tblHearings[[#All],[Commence \nDate]],\">=\"&Dashboard!$C$3,tblHearings[[#All],[Commence \nDate]],\"<=\"&Dashboard!$D$3,tblHearings[[#All],[Hearing Type]],Filter2,tblHearings[[#All],[SOJ]],$B12,tblHearings[[#All],[Outcome]],\"\")))","v":0}]
[null,{"$f":"IFERROR(IF($D$5=\"Hearing Type\",INDEX(tblHearingType[Hearing Type],ROW()-8,1),INDEX(tblSOJ[SOJ],ROW()-8,1)),\"\")","v":"SA"},{"$f":"IF(AND($D$5=\"Hearing Type\",Filter1=\"State\"),COUNTIFS(tblHearings[[#All],[Commence \nDate]],\">=\"&Dashboard!$C$3,tblHearings[[#All],[Commence \nDate]],\"<=\"&Dashboard!$D$3,tblHearings[[#All],[Hearing Type]],Dashboard!$B13,tblHearings[[#All],[SOJ]],Filter2,tblHearings[[#All],[Outcome]],\"<>\"&\"\"),IF(AND($D$5=\"Hearing Type\",Filter1=\"Claims Handler\"),COUNTIFS(tblHearings[[#All],[Commence \nDate]],\">=\"&Dashboard!$C$3,tblHearings[[#All],[Commence \nDate]],\"<=\"&Dashboard!$D$3,tblHearings[[#All],[Hearing Type]],Dashboard!$B13,tblHearings[[#All],[Claims Handler]],Filter2,tblHearings[[#All],[Outcome]],\"<>\"&\"\"),COUNTIFS(tblHearings[[#All],[Commence \nDate]],\">=\"&Dashboard!$C$3,tblHearings[[#All],[Commence \nDate]],\"<=\"&Dashboard!$D$3,tblHearings[[#All],[Hearing Type]],Filter2,tblHearings[[#All],[SOJ]],$B13,tblHearings[[#All],[Outcome]],\"<>\"&\"\")))","v":4},{"$f":"IF(AND($D$5=\"Hearing Type\",Filter1=\"State\"),COUNTIFS(tblHearings[[#All],[Commence \nDate]],\">=\"&Dashboard!$C$3,tblHearings[[#All],[Commence \nDate]],\"<=\"&Dashboard!$D$3,tblHearings[[#All],[Hearing Type]],Dashboard!$B13,tblHearings[[#All],[SOJ]],Filter2,tblHearings[[#All],[Outcome]],\"\"),IF(AND($D$5=\"Hearing Type\",Filter1=\"Claims Handler\"),COUNTIFS(tblHearings[[#All],[Commence \nDate]],\">=\"&Dashboard!$C$3,tblHearings[[#All],[Commence \nDate]],\"<=\"&Dashboard!$D$3,tblHearings[[#All],[Hearing Type]],Dashboard!$B13,tblHearings[[#All],[Claims Handler]],Filter2,tblHearings[[#All],[Outcome]],\"\"),COUNTIFS(tblHearings[[#All],[Commence \nDate]],\">=\"&Dashboard!$C$3,tblHearings[[#All],[Commence \nDate]],\"<=\"&Dashboard!$D$3,tblHearings[[#All],[Hearing Type]],Filter2,tblHearings[[#All],[SOJ]],$B13,tblHearings[[#All],[Outcome]],\"\")))","v":6}]
[null,{"$f":"IFERROR(IF($D$5=\"Hearing Type\",INDEX(tblHearingType[Hearing Type],ROW()-8,1),INDEX(tblSOJ[SOJ],ROW()-8,1)),\"\")","v":"TAS"},{"$f":"IF(AND($D$5=\"Hearing Type\",Filter1=\"State\"),COUNTIFS(tblHearings[[#All],[Commence \nDate]],\">=\"&Dashboard!$C$3,tblHearings[[#All],[Commence \nDate]],\"<=\"&Dashboard!$D$3,tblHearings[[#All],[Hearing Type]],Dashboard!$B14,tblHearings[[#All],[SOJ]],Filter2,tblHearings[[#All],[Outcome]],\"<>\"&\"\"),IF(AND($D$5=\"Hearing Type\",Filter1=\"Claims Handler\"),COUNTIFS(tblHearings[[#All],[Commence \nDate]],\">=\"&Dashboard!$C$3,tblHearings[[#All],[Commence \nDate]],\"<=\"&Dashboard!$D$3,tblHearings[[#All],[Hearing Type]],Dashboard!$B14,tblHearings[[#All],[Claims Handler]],Filter2,tblHearings[[#All],[Outcome]],\"<>\"&\"\"),COUNTIFS(tblHearings[[#All],[Commence \nDate]],\">=\"&Dashboard!$C$3,tblHearings[[#All],[Commence \nDate]],\"<=\"&Dashboard!$D$3,tblHearings[[#All],[Hearing Type]],Filter2,tblHearings[[#All],[SOJ]],$B14,tblHearings[[#All],[Outcome]],\"<>\"&\"\")))","v":0},{"$f":"IF(AND($D$5=\"Hearing Type\",Filter1=\"State\"),COUNTIFS(tblHearings[[#All],[Commence \nDate]],\">=\"&Dashboard!$C$3,tblHearings[[#All],[Commence \nDate]],\"<=\"&Dashboard!$D$3,tblHearings[[#All],[Hearing Type]],Dashboard!$B14,tblHearings[[#All],[SOJ]],Filter2,tblHearings[[#All],[Outcome]],\"\"),IF(AND($D$5=\"Hearing Type\",Filter1=\"Claims Handler\"),COUNTIFS(tblHearings[[#All],[Commence \nDate]],\">=\"&Dashboard!$C$3,tblHearings[[#All],[Commence \nDate]],\"<=\"&Dashboard!$D$3,tblHearings[[#All],[Hearing Type]],Dashboard!$B14,tblHearings[[#All],[Claims Handler]],Filter2,tblHearings[[#All],[Outcome]],\"\"),COUNTIFS(tblHearings[[#All],[Commence \nDate]],\">=\"&Dashboard!$C$3,tblHearings[[#All],[Commence \nDate]],\"<=\"&Dashboard!$D$3,tblHearings[[#All],[Hearing Type]],Filter2,tblHearings[[#All],[SOJ]],$B14,tblHearings[[#All],[Outcome]],\"\")))","v":0}]
[null,{"$f":"IFERROR(IF($D$5=\"Hearing Type\",INDEX(tblHearingType[Hearing Type],ROW()-8,1),INDEX(tblSOJ[SOJ],ROW()-8,1)),\"\")","v":"VIC"},{"$f":"IF(AND($D$5=\"Hearing Type\",Filter1=\"State\"),COUNTIFS(tblHearings[[#All],[Commence \nDate]],\">=\"&Dashboard!$C$3,tblHearings[[#All],[Commence \nDate]],\"<=\"&Dashboard!$D$3,tblHearings[[#All],[Hearing Type]],Dashboard!$B15,tblHearings[[#All],[SOJ]],Filter2,tblHearings[[#All],[Outcome]],\"<>\"&\"\"),IF(AND($D$5=\"Hearing Type\",Filter1=\"Claims Handler\"),COUNTIFS(tblHearings[[#All],[Commence \nDate]],\">=\"&Dashboard!$C$3,tblHearings[[#All],[Commence \nDate]],\"<=\"&Dashboard!$D$3,tblHearings[[#All],[Hearing Type]],Dashboard!$B15,tblHearings[[#All],[Claims Handler]],Filter2,tblHearings[[#All],[Outcome]],\"<>\"&\"\"),COUNTIFS(tblHearings[[#All],[Commence \nDate]],\">=\"&Dashboard!$C$3,tblHearings[[#All],[Commence \nDate]],\"<=\"&Dashboard!$D$3,tblHearings[[#All],[Hearing Type]],Filter2,tblHearings[[#All],[SOJ]],$B15,tblHearings[[#All],[Outcome]],\"<>\"&\"\")))","v":1},{"$f":"IF(AND($D$5=\"Hearing Type\",Filter1=\"State\"),COUNTIFS(tblHearings[[#All],[Commence \nDate]],\">=\"&Dashboard!$C$3,tblHearings[[#All],[Commence \nDate]],\"<=\"&Dashboard!$D$3,tblHearings[[#All],[Hearing Type]],Dashboard!$B15,tblHearings[[#All],[SOJ]],Filter2,tblHearings[[#All],[Outcome]],\"\"),IF(AND($D$5=\"Hearing Type\",Filter1=\"Claims Handler\"),COUNTIFS(tblHearings[[#All],[Commence \nDate]],\">=\"&Dashboard!$C$3,tblHearings[[#All],[Commence \nDate]],\"<=\"&Dashboard!$D$3,tblHearings[[#All],[Hearing Type]],Dashboard!$B15,tblHearings[[#All],[Claims Handler]],Filter2,tblHearings[[#All],[Outcome]],\"\"),COUNTIFS(tblHearings[[#All],[Commence \nDate]],\">=\"&Dashboard!$C$3,tblHearings[[#All],[Commence \nDate]],\"<=\"&Dashboard!$D$3,tblHearings[[#All],[Hearing Type]],Filter2,tblHearings[[#All],[SOJ]],$B15,tblHearings[[#All],[Outcome]],\"\")))","v":4}]
[null,{"$f":"IFERROR(IF($D$5=\"Hearing Type\",INDEX(tblHearingType[Hearing Type],ROW()-8,1),INDEX(tblSOJ[SOJ],ROW()-8,1)),\"\")","v":"WA"},{"$f":"IF(AND($D$5=\"Hearing Type\",Filter1=\"State\"),COUNTIFS(tblHearings[[#All],[Commence \nDate]],\">=\"&Dashboard!$C$3,tblHearings[[#All],[Commence \nDate]],\"<=\"&Dashboard!$D$3,tblHearings[[#All],[Hearing Type]],Dashboard!$B16,tblHearings[[#All],[SOJ]],Filter2,tblHearings[[#All],[Outcome]],\"<>\"&\"\"),IF(AND($D$5=\"Hearing Type\",Filter1=\"Claims Handler\"),COUNTIFS(tblHearings[[#All],[Commence \nDate]],\">=\"&Dashboard!$C$3,tblHearings[[#All],[Commence \nDate]],\"<=\"&Dashboard!$D$3,tblHearings[[#All],[Hearing Type]],Dashboard!$B16,tblHearings[[#All],[Claims Handler]],Filter2,tblHearings[[#All],[Outcome]],\"<>\"&\"\"),COUNTIFS(tblHearings[[#All],[Commence \nDate]],\">=\"&Dashboard!$C$3,tblHearings[[#All],[Commence \nDate]],\"<=\"&Dashboard!$D$3,tblHearings[[#All],[Hearing Type]],Filter2,tblHearings[[#All],[SOJ]],$B16,tblHearings[[#All],[Outcome]],\"<>\"&\"\")))","v":5},{"$f":"IF(AND($D$5=\"Hearing Type\",Filter1=\"State\"),COUNTIFS(tblHearings[[#All],[Commence \nDate]],\">=\"&Dashboard!$C$3,tblHearings[[#All],[Commence \nDate]],\"<=\"&Dashboard!$D$3,tblHearings[[#All],[Hearing Type]],Dashboard!$B16,tblHearings[[#All],[SOJ]],Filter2,tblHearings[[#All],[Outcome]],\"\"),IF(AND($D$5=\"Hearing Type\",Filter1=\"Claims Handler\"),COUNTIFS(tblHearings[[#All],[Commence \nDate]],\">=\"&Dashboard!$C$3,tblHearings[[#All],[Commence \nDate]],\"<=\"&Dashboard!$D$3,tblHearings[[#All],[Hearing Type]],Dashboard!$B16,tblHearings[[#All],[Claims Handler]],Filter2,tblHearings[[#All],[Outcome]],\"\"),COUNTIFS(tblHearings[[#All],[Commence \nDate]],\">=\"&Dashboard!$C$3,tblHearings[[#All],[Commence \nDate]],\"<=\"&Dashboard!$D$3,tblHearings[[#All],[Hearing Type]],Filter2,tblHearings[[#All],[SOJ]],$B16,tblHearings[[#All],[Outcome]],\"\")))","v":12}]
[null,{"$f":"IFERROR(IF($D$5=\"Hearing Type\",INDEX(tblHearingType[Hearing Type],ROW()+1,1),INDEX(tblSOJ[SOJ],ROW()+1,1)),\"\")","v":""}]
[null,"Peter Myers Mediation Claims"]
[null,"Claim No","Insured","Hearing Type","Commence Date","Claims Handler","Incurred","Approved","Approval Date"]
[null,"L66-724982","Robert Hoffmann","Mediation","2014-07-10","Peter Myers"]
[null,"L25-771259","C&C Fairbarn","Mediation","2014-08-22","Peter Myers"]

{"sheet":"List of Hearings","index":1,"n_rows":54,"n_cols":26,"rows_kept":54,"cut":false,"hidden":true,"merged":[[0,1,1,4]]}
[null,"NATIONAL LIABILITY AND PROFESSIONAL INDEMNITY HEARING DATABASE"]
[]
[]
[]
["Division","Claim No.","Insured","Legal Representative","Counsel","Plaintiff","Legal Representative (Plaintiff)","Counsel (Plaintiff)","SOJ","Jurisdiction","Hearing Type","Commence \nDate","Duration","Claims Handler","Outcome","Judge","Judgement Date","Awarded Damages","Incurred","Settled Within Incurred","Increase Amt Required","Appeal","Approved","Approval Date","Committee Chairperson","Notification Sent Date"]
[" SA","R40-807994","Catherine Scott","Alikorki, Muchan & Tucker",null,"Lear",null,null,"SA","Magistrate","Trial","2014-03-07",1,"Shaun Simpson","Judgment - Plaintiff"]
[" WA/NT","L13-240699","Danny Hastwell","Hemingway & Gero Solicitors",null,"Caldwell",null,null,"WA","District","Trial","2014-03-31",null,"?","Negotiated Settlement",null,null,null,null,null,null,null,"YES"]
[" WA/NT","L30-538081","Burt Preece","Sexton & Horley - Glenelg North",null,"Smith ",null,null,"WA","District","Trial","2014-04-15","N/A","?",null,null,null,null,null,null,null,null,"YES"]
[" SA","J88-598215","Mary Ktisti","Holmes, Craig & Scott",null,"Oberdon",null,null,"SA","District",null,"2014-05-05",5,"Andrew Grey","Negotiated Settlement"]
[" WA/NT","L66-186346","Brenton Hughes","Grave, Floreani & Masstorovic",null,"Carboncini",null,null,"WA","District","Trial","2014-05-06",null,"Bob Atkins","Negotiated Settlement",null,null,null,null,null,null,null,"NO"]
[" WA/NT","L51-013871","Wayne Lyons","Hemingway & Gero Solicitors",null,"Polley",null,null,"NSW","District",null,"2014-05-19",null,"Michael Robinson","Negotiated Settlement"]
[" WA/NT","J79-664557","Simon Adams","Carboni, Sando & Szczurko",null,"Bates",null,null,"WA","District","ISC","2014-05-22",1,"Bob Atkins",null,null,null,null,null,null,null,null,"NO"]
[" WA/NT","L55-264126","David Basso","Carboni, Sando & Szczurko",null,"Sanpucci",null,null,"WA","District","ISC","2014-05-28",1,"Bob Atkins","Negotiated Settlement"]
[" WA/NT","L94-760864","Sandy Speck","Grave, Floreani & Masstorovic",null,"Threlfall",null,null,"QLD","District","Mediation","2014-05-29",1,"Bob Atkins","Negotiated Settlement"]
[" WA/NT","J93-440930","Paul  Lock","Hemingway & Gero Solicitors",null,"Drilling",null,null,"wa","District","ISC","2014-05-29",1,"Trudy Duncan","Negotiated Settlement"]
[" WA/NT","J59-901891","Jason Kema","Admiral & Sanpucci Solicitors",null,"Pugsley",null,null,"WA","District","ISC","2014-06-02",1,"Bob Atkins","Negotiated Settlement"]
[" SA","J96-637563","Ben Meston","Alikorki, Muchan & Tucker",null,"Kachne",null,null,"SA","Magistrate","ISC","2014-06-13",1,"Alan Voigt"]
["TAS","L96-582586","Hugo Lamshed","Twelftree & Wickels Lawyers",null,"Raybone",null,null,"VIC","County","Mediation","2014-06-17",null,"Shana Thompson"]
[" WA/NT","L41-801101","R Sparrow","Admiral & Sanpucci Solicitors",null,"Struik",null,null,"WA","District","Mediation","2014-06-23",1,"Bob Atkins"]
[" SA","R15-421132","Mark Wong","Kutcher, Brown & Bertram",null,"Gillespie",null,null,"SA","District","Mediation","2014-07-01",9,"Andrew Grey"]
[" WA/NT","J51-181205","David Zibell","Sexton & Horley - Glenelg North",null,"Bennett ",null,null,"WA","District","ISC","2014-07-01",1,"Aaron Smith"]
["TAS","L66-724982","Robert Hoffmann","Other",null,"Goss",null,null,"NSW","District","Mediation","2014-07-10",null,"Peter Myers","Negotiated Settlement"]
[" WA/NT","R90-450601","John Morrissey","Hemingway & Gero Solicitors - Mannum",null,"Allen",null,null,"WA","District","ISC","2014-07-14",1,"Bob Atkins"]
[" WA/NT","L59-429523","Chris Knowles","Admiral & Sanpucci Solicitors - Hawthorn",null,"Coffey",null,null,"WA","District","ISC","2014-07-15",1,"Bob Atkins"]
[" SA","J82-270911","Rod Broomhall","Alikorki, Muchan & Tucker",null,"Gray",null,null,"SA","District","Trial","2014-07-21",5,"Shaun Simpson","Negotiated Settlement"]
[" WA/NT","J13-215339","Karen Phillips","Grave, Floreani & Masstorovic",null,"Partington",null,null,"WA","District","Trial","2014-07-22",5,"Bob Atkins"]
[" WA/NT","R92-878355","John Childs","Twelftree & Wickels Lawyers - Belair",null,"Hodge",null,null,"VIC","District","Trial","2014-07-27",null,"Michael Robinson"]
[" WA/NT","J41-534240","David Hemingway","Sexton & Horley - Glenelg North",null,"Yianni",null,null,"WA","District","ISC","2014-08-01",1,"Bob Atkins"]
[" SA","J81-975874","Tom Jones","Jobels & Powers Solicitors - Hilton",null,"Hatchard",null,null,"NT","Supreme ","Mediation","2014-08-11",1,"David McBride"]
[" WA/NT","R51-610131","Katrina Borysiuk","Kutcher, Brown & Bertram",null,"Harris",null,null,"NSW","District","Mediation","2014-08-12",1,"Bob Atkins"]
["TAS","L98-632521","Sue Daniel","Jobels & Powers Solicitors - Hilton",null,"Minzlaff",null,null,"QLD","District","Mediation","2014-08-18",7,"Rachel Brown","Negotiated Settlement"]
["TAS","J10-887880","Dr John Lawson","Dunn & Jaekel Lawyers - Col.Light.Gdns",null,"Fenwick",null,null,"VIC","Magistrate","ISC","2014-08-18",null,"Rachel Brown"]
[" WA/NT","R92-955523","Simon Naopaford","Twelftree & Wickels Lawyers - Belair",null,"Pearson",null,null,"WA","District","ISC","2014-08-20",1,"Bob Atkins"]
["TAS","L10-453817","C&C Handley","Holmes, Craig & Scott",null,"Bush",null,null,"WA","Magistrate","Trial","2014-08-20",null,"Peter Myers",null,null,null,null,null,null,null,null,null,null,null,"29/07/2014"]
["TAS","L25-771259","C&C Fairbarn","Sexton & Horley - Glenelg North",null,"Krivicic",null,null,"VIC","District","Mediation","2014-08-22",null,"Peter Myers","Negotiated Settlement"]
[" SA","R65-582405","Andrew Nutt","Jobels & Powers Solicitors - Hilton",null,"Olson ",null,null,"SA","District","ISC","2014-08-22",1,"Andrew Grey","Negotiated Settlement"]
[" SA","R34-413052","Zac Kutcher","Brett, Coombe & Lyons ",null,"Worden",null,null,"SA","District","ISC","2014-08-27",1,"Andrew Grey"]
["TAS","L60-926625","Dr John Elsworth","Jobels & Powers Solicitors - Hilton",null,"Deyoung ",null,null,"NSW","District",null,"2014-09-01",2,"Shana Thompson"]
[" WA/NT","L73-348618","Steven Evans","Brock, Mcalister & Allen",null,"Edwards",null,null,"WA","District","ISC","2014-09-24",1,"Aaron Smith"]
[" SA","R27-840089","Sam Mitchell ","Sexton & Horley - Glenelg North",null,"Chessell",null,null,"SA","District","ISC","2014-10-13",7,"Shaun Simpson","Negotiated Settlement"]
["TAS","R13-319069","Jodie Wickels","Brock, Mcalister & Allen",null,"Adams",null,null,"SA","District","Trial","2014-10-13",7,"?"]
["TAS","J14-230564","Luke  Lajoie","Brock, Mcalister & Allen",null,"Gardener",null,null,"VIC",null,"Directions","2014-10-15",null,"Peter Myers"]
[" SA","J58-829188","Jane Burton","Alikorki, Muchan & Tucker",null,"Byrnes",null,null,"SA","District","Trial","2014-11-17",5,"Shaun Simpson"]
[" SA","L84-646680","David Amato","Kutcher, Brown & Bertram",null,"Cary",null,null,"SA","District","Trial","2014-12-01",7,"Shaun Simpson"]
[" WA/NT","J52-385895","Mark Escritt","Hemingway & Gero Solicitors - Mannum",null,"Aldridge",null,null,"WA","District","ISC","2014-12-08",1,"Aaron Smith"]
[" SA","J72-204538","Rhys Wunderitz","Kutcher, Brown & Bertram",null,"Elsworth",null,null,"SA","District","Trial","2015-03-02",15,"Shaun Simpson"]
[" SA","L22-378694","Graham Scherer","Hemingway & Gero Solicitors - Mannum",null,"Chui ",null,null,"SA","District","Trial","2015-05-04",20,"Shaun Simpson"]
[" SA","J59-322133","Elena Hayes","Kutcher, Brown & Bertram",null,"Lyford",null,null,"SA","District","Trial","2015-05-18",5,"Shaun Simpson"]
[" SA","L35-548478","Wally Tucker","Brett, Coombe & Lyons ",null,"Tucker",null,null,"SA","District","Trial","2015-06-15",10,"Shaun Simpson"]
[" SA","R82-694079","Bruce Carboncini","Dunn & Jaekel Lawyers - Col.Light.Gdns",null,"Rawson",null,null,"SA","District","Trial","2015-07-06",7,"Shaun Simpson"]
[" SA","J56-323943","Penny Telford","Grave, Floreani & Masstorovic",null,"Cabot",null,null,"SA","District","Trial","2015-08-03",10,"Shaun Simpson"]
["TAS","L79-323081","Michael Kobayashi","Admiral & Sanpucci Solicitors - Hawthorn",null,"Gibbs",null,null,"VIC","Supreme",null,null,null,"?","Negotiated Settlement"]
[" SA","J10-170304"," Claus Kellett","Admiral & Sanpucci Solicitors - Hawthorn",null,"Sideris",null,null,"VIC",null,null,null,null,"?"]
["TAS","J63-226999","Kathy Philip","Sexton & Horley - Glenelg North",null,"Gold",null,null,"VIC",null,null,null,null,"?","Negotiated Settlement"]

{"sheet":"Duplicate","index":2,"n_rows":54,"n_cols":26,"rows_kept":54,"cut":false,"hidden":true,"merged":[[1,0,2,7],[3,0,3,7]]}
[]
["UNCONTROLLED COPY OF NATIONAL LIABILITY AND PROFESSIONAL INDEMNITY HEARING DATABASE"]
[]
["Created: 11 Aug 2015"]
["Division","Claim No.","Insured","Legal Representative","Counsel","Plaintiff","Legal Representative (Plaintiff)","Counsel (Plaintiff)","SOJ","Jurisdiction","Hearing Type","Commence \nDate","Duration","Claims Handler","Outcome","Judge","Judgement Date","Awarded Damages","Incurred","Settled Within Incurred","Increase Amt Required","Appeal","Approved","Approval Date","Committee Chairperson","Notification Sent Date"]
[" SA","R40-807994","Catherine Scott","Alikorki, Muchan & Tucker",null,"Lear",null,null,"SA","Magistrate","Trial","2014-03-07",1,"Shaun Simpson","Judgment - Plaintiff"]
[" WA/NT","L13-240699","Danny Hastwell","Hemingway & Gero Solicitors",null,"Caldwell",null,null,"WA","District","Trial","2014-03-31",null,"?","Negotiated Settlement",null,null,null,null,null,null,null,"YES"]
[" WA/NT","L30-538081","Burt Preece","Sexton & Horley - Glenelg North",null,"Smith ",null,null,"WA","District","Trial","2014-04-15","N/A","?",null,null,null,null,null,null,null,null,"YES"]
[" SA","J88-598215","Mary Ktisti","Holmes, Craig & Scott",null,"Oberdon",null,null,"SA","District",null,"2014-05-05",5,"Andrew Grey","Negotiated Settlement"]
[" WA/NT","L66-186346","Brenton Hughes","Grave, Floreani & Masstorovic",null,"Carboncini",null,null,"WA","District","Trial","2014-05-06",null,"Bob Atkins","Negotiated Settlement",null,null,null,null,null,null,null,"NO"]
[" WA/NT","L51-013871","Wayne Lyons","Hemingway & Gero Solicitors",null,"Polley",null,null,"NSW","District",null,"2014-05-19",null,"Michael Robinson","Negotiated Settlement"]
[" WA/NT","J79-664557","Simon Adams","Carboni, Sando & Szczurko",null,"Bates",null,null,"WA","District","ISC","2014-05-22",1,"Bob Atkins",null,null,null,null,null,null,null,null,"NO"]
[" WA/NT","L55-264126","David Basso","Carboni, Sando & Szczurko",null,"Sanpucci",null,null,"WA","District","ISC","2014-05-28",1,"Bob Atkins","Negotiated Settlement"]
[" WA/NT","L94-760864","Sandy Speck","Grave, Floreani & Masstorovic",null,"Threlfall",null,null,"QLD","District","Mediation","2014-05-29",1,"Bob Atkins","Negotiated Settlement"]
[" WA/NT","J93-440930","Paul  Lock","Hemingway & Gero Solicitors",null,"Drilling",null,null,"wa","District","ISC","2014-05-29",1,"Trudy Duncan","Negotiated Settlement"]
[" WA/NT","J59-901891","Jason Kema","Admiral & Sanpucci Solicitors",null,"Pugsley",null,null,"WA","District","ISC","2014-06-02",1,"Bob Atkins","Negotiated Settlement"]
[" SA","J96-637563","Ben Meston","Alikorki, Muchan & Tucker",null,"Kachne",null,null,"SA","Magistrate","ISC","2014-06-13",1,"Alan Voigt"]
["TAS","L96-582586","Hugo Lamshed","Twelftree & Wickels Lawyers",null,"Raybone",null,null,"VIC","County","Mediation","2014-06-17",null,"Shana Thompson"]
[" WA/NT","L41-801101","R Sparrow","Admiral & Sanpucci Solicitors",null,"Struik",null,null,"WA","District","Mediation","2014-06-23",1,"Bob Atkins"]
[" SA","R15-421132","Mark Wong","Kutcher, Brown & Bertram",null,"Gillespie",null,null,"SA","District","Mediation","2014-07-01",9,"Andrew Grey"]
[" WA/NT","J51-181205","David Zibell","Sexton & Horley - Glenelg North",null,"Bennett ",null,null,"WA","District","ISC","2014-07-01",1,"Aaron Smith"]
["TAS","L66-724982","Robert Hoffmann","Other",null,"Goss",null,null,"NSW","District","Mediation","2014-07-10",null,"Peter Myers","Negotiated Settlement"]
[" WA/NT","R90-450601","John Morrissey","Hemingway & Gero Solicitors - Mannum",null,"Allen",null,null,"WA","District","ISC","2014-07-14",1,"Bob Atkins"]
[" WA/NT","L59-429523","Chris Knowles","Admiral & Sanpucci Solicitors - Hawthorn",null,"Coffey",null,null,"WA","District","ISC","2014-07-15",1,"Bob Atkins"]
[" SA","J82-270911","Rod Broomhall","Alikorki, Muchan & Tucker",null,"Gray",null,null,"SA","District","Trial","2014-07-21",5,"Shaun Simpson","Negotiated Settlement"]
[" WA/NT","J13-215339","Karen Phillips","Grave, Floreani & Masstorovic",null,"Partington",null,null,"WA","District","Trial","2014-07-22",5,"Bob Atkins"]
[" WA/NT","R92-878355","John Childs","Twelftree & Wickels Lawyers - Belair",null,"Hodge",null,null,"VIC","District","Trial","2014-07-27",null,"Michael Robinson"]
[" WA/NT","J41-534240","David Hemingway","Sexton & Horley - Glenelg North",null,"Yianni",null,null,"WA","District","ISC","2014-08-01",1,"Bob Atkins"]
[" SA","J81-975874","Tom Jones","Jobels & Powers Solicitors - Hilton",null,"Hatchard",null,null,"NT","Supreme ","Mediation","2014-08-11",1,"David McBride"]
[" WA/NT","R51-610131","Katrina Borysiuk","Kutcher, Brown & Bertram",null,"Harris",null,null,"NSW","District","Mediation","2014-08-12",1,"Bob Atkins"]
["TAS","L98-632521","Sue Daniel","Jobels & Powers Solicitors - Hilton",null,"Minzlaff",null,null,"QLD","District","Mediation","2014-08-18",7,"Rachel Brown","Negotiated Settlement"]
["TAS","J10-887880","Dr John Lawson","Dunn & Jaekel Lawyers - Col.Light.Gdns",null,"Fenwick",null,null,"VIC","Magistrate","ISC","2014-08-18",null,"Rachel Brown"]
[" WA/NT","R92-955523","Simon Naopaford","Twelftree & Wickels Lawyers - Belair",null,"Pearson",null,null,"WA","District","ISC","2014-08-20",1,"Bob Atkins"]
["TAS","L10-453817","C&C Handley","Holmes, Craig & Scott",null,"Bush",null,null,"WA","Magistrate","Trial","2014-08-20",null,"Peter Myers",null,null,null,null,null,null,null,null,null,null,null,"29/07/2014"]
["TAS","L25-771259","C&C Fairbarn","Sexton & Horley - Glenelg North",null,"Krivicic",null,null,"VIC","District","Mediation","2014-08-22",null,"Peter Myers","Negotiated Settlement"]
[" SA","R65-582405","Andrew Nutt","Jobels & Powers Solicitors - Hilton",null,"Olson ",null,null,"SA","District","ISC","2014-08-22",1,"Andrew Grey","Negotiated Settlement"]
[" SA","R34-413052","Zac Kutcher","Brett, Coombe & Lyons ",null,"Worden",null,null,"SA","District","ISC","2014-08-27",1,"Andrew Grey"]
["TAS","L60-926625","Dr John Elsworth","Jobels & Powers Solicitors - Hilton",null,"Deyoung ",null,null,"NSW","District",null,"2014-09-01",2,"Shana Thompson"]
[" WA/NT","L73-348618","Steven Evans","Brock, Mcalister & Allen",null,"Edwards",null,null,"WA","District","ISC","2014-09-24",1,"Aaron Smith"]
[" SA","R27-840089","Sam Mitchell ","Sexton & Horley - Glenelg North",null,"Chessell",null,null,"SA","District","ISC","2014-10-13",7,"Shaun Simpson","Negotiated Settlement"]
["TAS","R13-319069","Jodie Wickels","Brock, Mcalister & Allen",null,"Adams",null,null,"SA","District","Trial","2014-10-13",7,"?"]
["TAS","J14-230564","Luke  Lajoie","Brock, Mcalister & Allen",null,"Gardener",null,null,"VIC",null,"Directions","2014-10-15",null,"Peter Myers"]
[" SA","J58-829188","Jane Burton","Alikorki, Muchan & Tucker",null,"Byrnes",null,null,"SA","District","Trial","2014-11-17",5,"Shaun Simpson"]
[" SA","L84-646680","David Amato","Kutcher, Brown & Bertram",null,"Cary",null,null,"SA","District","Trial","2014-12-01",7,"Shaun Simpson"]
[" WA/NT","J52-385895","Mark Escritt","Hemingway & Gero Solicitors - Mannum",null,"Aldridge",null,null,"WA","District","ISC","2014-12-08",1,"Aaron Smith"]
[" SA","J72-204538","Rhys Wunderitz","Kutcher, Brown & Bertram",null,"Elsworth",null,null,"SA","District","Trial","2015-03-02",15,"Shaun Simpson"]
[" SA","L22-378694","Graham Scherer","Hemingway & Gero Solicitors - Mannum",null,"Chui ",null,null,"SA","District","Trial","2015-05-04",20,"Shaun Simpson"]
[" SA","J59-322133","Elena Hayes","Kutcher, Brown & Bertram",null,"Lyford",null,null,"SA","District","Trial","2015-05-18",5,"Shaun Simpson"]
[" SA","L35-548478","Wally Tucker","Brett, Coombe & Lyons ",null,"Tucker",null,null,"SA","District","Trial","2015-06-15",10,"Shaun Simpson"]
[" SA","R82-694079","Bruce Carboncini","Dunn & Jaekel Lawyers - Col.Light.Gdns",null,"Rawson",null,null,"SA","District","Trial","2015-07-06",7,"Shaun Simpson"]
[" SA","J56-323943","Penny Telford","Grave, Floreani & Masstorovic",null,"Cabot",null,null,"SA","District","Trial","2015-08-03",10,"Shaun Simpson"]
["TAS","L79-323081","Michael Kobayashi","Admiral & Sanpucci Solicitors - Hawthorn",null,"Gibbs",null,null,"VIC","Supreme",null,null,null,"?","Negotiated Settlement"]
[" SA","J10-170304"," Claus Kellett","Admiral & Sanpucci Solicitors - Hawthorn",null,"Sideris",null,null,"VIC",null,null,null,null,"?"]
["TAS","J63-226999","Kathy Philip","Sexton & Horley - Glenelg North",null,"Gold",null,null,"VIC",null,null,null,null,"?","Negotiated Settlement"]

{"sheet":"Data","index":3,"n_rows":17,"n_cols":14,"rows_kept":17,"cut":false,"hidden":true,"merged":[]}
["Claims Handler","Email Address","Hearing Type","Division","Legal Representative","SOJ","Jurisdiction","Outcome","Appeal","Chairperson","Email Data",null,null,"All"]
["Aaron Smith","Aaron.Smith@nonexistentcompany.test.au","ISC"," SA","Barry & Nilsson","ACT","County","Negotiated Settlement","Yes","Chairperson 1","Subject Line:","Trial listed for "]
["Alan Voigt","Alan.Voigt@nonexistentcompany.test.au","Mediation"," WA/NT","CKE Legal","NSW","District","Judgment - Plaintiff","No","Chairperson 2","Body Text:","A trial date has been recorded for this matter commencing within the next 8 weeks. The trial register does not indicate that the matter has been resolved and accordingly a roundtable discussion must now be arranged with your Service Manager, LT Claims Manager, Legal Manager and LT Technical Claims Manager to agree strategy and review the reserve.\n \nPlease action this email as soon as possible in accordance with the National Claims Service Standards.\n\nThank you"]
["Andrew Grey","Andrew.Grey@nonexistentcompany.test.au","Trial","TAS","Colins Biggers & Paisley","NT","Federal","Judgment - Defendant",null,"Chairperson 3","Recipients Email Addresses:","national.claims@testcompany.test.au"]
["Bob Atkins","Bob.Atkins@nonexistentcompany.test.au","Appeal"," QLD","Gilchrist Connell","QLD","Magistrate","Discontinued",null,"Chairperson 4","Send or Preview","Preview"]
["David McBride","David.McBride@nonexistentcompany.test.au","Directions"," VIC/TAS","Gillis Delaney","SA","Supreme ","Pending Judgement",null,"Chairperson 5"]
["Michael Robinson","Michael.Robinson@nonexistentcompany.test.au","Pre Trial Conference"," NSW/ACT","Gun & Davey","TAS","High"]
["Peter Myers","Peter.Myers@nonexistentcompany.test.au","Other","Professional Indemnity","Hall & Wilcox","VIC"]
["Rachel Brown","Rachel.Brown@nonexistentcompany.test.au","All",null,"Hicksons","WA"]
["Shana Thompson","Shana.Thompson@nonexistentcompany.test.au",null,null,"McInnes Wilson","All"]
["Shaun Simpson","Shaun.Simpson@nonexistentcompany.test.au",null,null,"Moray & Agnew"]
["Trudy Duncan","Trudy.Duncan@nonexistentcompany.test.au",null,null,"Page Seager"]
["All","All@nonexistentcompany.test.au",null,null,"SRB Legal"]
[null,null,null,null,"Wallace Wilkinson Webster"]
[null,null,null,null,"Wotton & Kearney"]
[null,null,null,null,"Other"]
[null,null,null,null,"Hunt & Hunt"]